[Event "Meltwater Champions Chess Tour 2022: Chessable Masters | Prelims"]
[White "Carlsen, Magnus"]
[Black "Van Foreest, Jorden"]
[WhiteFideId "1503014"]
[BlackFideId "1039784"]
[WhiteElo "2847"]
[BlackElo "2645"]
[Result "1-0"]
[Round "04"]
[TimeControl "900+10"]
[Date "2022.05.19"]
[WhiteClock "0:11:15"]
[BlackClock "0:01:50"]

1. d4 {[%clk 0:15:20]}  d5 {[%clk 0:15:20]} 2. c4 {[%clk 0:15:25]}  e6 {[%clk 0:15:28]} 3. Nc3 {[%clk 0:15:32]}  c5 {[%clk 0:15:36]} 4. cxd5 {[%clk 0:15:41]}  exd5 {[%clk 0:15:45]} 5. Nf3 {[%clk 0:15:49]}  Nf6 {[%clk 0:15:54]} 6. Bg5 {[%clk 0:15:53]}  Be6 {[%clk 0:16:02]} 7. dxc5 {[%clk 0:15:56]}  Bxc5 {[%clk 0:16:09]} 8. e3 {[%clk 0:16:05]}  Nc6 {[%clk 0:16:07]} 9. Bb5 {[%clk 0:15:47]}  h6 {[%clk 0:15:39]} 10. Bxf6 {[%clk 0:14:59]}  Qxf6 {[%clk 0:14:54]} 11. Nxd5 {[%clk 0:13:54]}  Qxb2 {[%clk 0:12:26]} 12. Nc7+ {[%clk 0:14:01]}  Ke7 {[%clk 0:12:35]} 13. O-O {[%clk 0:14:04]}  Rad8 {[%clk 0:11:39]} 14. Qc1 {[%clk 0:12:37]}  Qxc1 {[%clk 0:10:26]} 15. Raxc1 {[%clk 0:12:44]}  Kd6 {[%clk 0:07:55]} 16. Nxe6 {[%clk 0:12:47]}  fxe6 {[%clk 0:07:45]} 17. Rfd1+ {[%clk 0:11:37]}  Kc7 {[%clk 0:07:45]} 18. Rxd8 {[%clk 0:11:47]}  Rxd8 {[%clk 0:07:51]} 19. Rxc5 {[%clk 0:11:55]}  Kb6 {[%clk 0:07:59]} 20. Rxc6+ {[%clk 0:10:26]}  bxc6 {[%clk 0:08:05]} 21. Ba4 {[%clk 0:10:33]}  c5 {[%clk 0:07:04]} 22. Ne5 {[%clk 0:10:35]}  Kc7 {[%clk 0:06:20]} 23. Kf1 {[%clk 0:10:25]}  Rd2 {[%clk 0:05:49]} 24. Bb3 {[%clk 0:10:33]}  Rb2 {[%clk 0:05:53]} 25. h4 {[%clk 0:10:37]}  Rb1+ {[%clk 0:04:30]} 26. Ke2 {[%clk 0:10:45]}  Kd6 {[%clk 0:04:28]} 27. f4 {[%clk 0:10:50]}  Rb2+ {[%clk 0:04:26]} 28. Kf3 {[%clk 0:10:58]}  Rb1 {[%clk 0:04:02]} 29. g4 {[%clk 0:11:07]}  Rc1 {[%clk 0:04:00]} 30. g5 {[%clk 0:10:40]}  Ke7 {[%clk 0:04:04]} 31. Kg4 {[%clk 0:10:08]}  Re1 {[%clk 0:03:37]} 32. Kh5 {[%clk 0:10:12]}  Rxe3 {[%clk 0:02:03]} 33. Kg6 {[%clk 0:10:19]}  hxg5 {[%clk 0:02:09]} 34. hxg5 {[%clk 0:10:28]}  Kf8 {[%clk 0:02:19]} 35. Nd7+ {[%clk 0:10:35]}  Ke7 {[%clk 0:02:25]} 36. Nxc5 {[%clk 0:10:45]}  e5 {[%clk 0:02:35]} 37. f5 {[%clk 0:10:50]}  Kd6 {[%clk 0:02:26]} 38. Ne6 {[%clk 0:10:59]}  e4 {[%clk 0:02:28]} 39. Kxg7 {[%clk 0:11:01]}  Rf3 {[%clk 0:02:02]} 40. f6 {[%clk 0:11:05]}  e3 {[%clk 0:01:50]} 41. Nd4 {[%clk 0:11:15]} 1-0


[Site "http://www.chessbomb.com"]

[Event "Meltwater Champions Chess Tour 2022: Chessable Masters | Prelims"]
[White "Mishra, Abhimanyu"]
[Black "Mamedyarov, Shakhriyar"]
[WhiteFideId "30920019"]
[BlackFideId "13401319"]
[WhiteElo "2524"]
[BlackElo "2699"]
[Result "1-0"]
[Round "04"]
[TimeControl "900+10"]
[Date "2022.05.19"]
[WhiteClock "0:00:32"]
[BlackClock "0:03:04"]

1. e4 {[%clk 0:15:20]}  e5 {[%clk 0:15:20]} 2. Nf3 {[%clk 0:15:28]}  Nc6 {[%clk 0:15:29]} 3. Bc4 {[%clk 0:15:36]}  Bc5 {[%clk 0:15:37]} 4. c3 {[%clk 0:15:44]}  Nf6 {[%clk 0:15:46]} 5. d3 {[%clk 0:15:53]}  O-O {[%clk 0:15:54]} 6. O-O {[%clk 0:16:02]}  d5 {[%clk 0:15:53]} 7. exd5 {[%clk 0:16:10]}  Nxd5 {[%clk 0:16:04]} 8. a4 {[%clk 0:16:11]}  a5 {[%clk 0:15:48]} 9. Nbd2 {[%clk 0:16:10]}  Kh8 {[%clk 0:14:41]} 10. Re1 {[%clk 0:14:34]}  f6 {[%clk 0:14:48]} 11. d4 {[%clk 0:13:26]}  Ba7 {[%clk 0:13:14]} 12. dxe5 {[%clk 0:12:33]}  Nxe5 {[%clk 0:13:16]} 13. Nxe5 {[%clk 0:11:25]}  fxe5 {[%clk 0:13:26]} 14. Ne4 {[%clk 0:11:13]}  Be6 {[%clk 0:11:15]} 15. Bg5 {[%clk 0:09:50]}  Qd7 {[%clk 0:11:10]} 16. Bh4 {[%clk 0:09:09]}  h6 {[%clk 0:09:56]} 17. Bg3 {[%clk 0:08:27]}  Qf7 {[%clk 0:09:46]} 18. Qb3 {[%clk 0:07:54]}  c6 {[%clk 0:09:40]} 19. Kh1 {[%clk 0:07:07]}  Rad8 {[%clk 0:08:25]} 20. Bxe5 {[%clk 0:05:36]}  Bh3 {[%clk 0:07:08]} 21. Bg3 {[%clk 0:02:31]}  Bxg2+ {[%clk 0:04:14]} 22. Kxg2 {[%clk 0:02:39]}  Qf3+ {[%clk 0:04:22]} 23. Kg1 {[%clk 0:02:46]}  Ne3 {[%clk 0:04:18]} 24. Rxe3 {[%clk 0:02:15]}  Bxe3 {[%clk 0:04:27]} 25. Re1 {[%clk 0:02:12]}  Qxe4 {[%clk 0:04:36]} 26. Rxe3 {[%clk 0:01:48]}  Qb1+ {[%clk 0:04:44]} 27. Kg2 {[%clk 0:01:53]}  Rd1 {[%clk 0:04:53]} 28. Be2 {[%clk 0:00:51]}  Rg1+ {[%clk 0:03:27]} 29. Kh3 {[%clk 0:01:00]}  Qf5+ {[%clk 0:03:25]} 30. Bg4 {[%clk 0:01:02]}  Qg5 {[%clk 0:03:34]} 31. Qe6 {[%clk 0:00:34]}  h5 {[%clk 0:03:38]} 32. Be2 {[%clk 0:00:32]}  Rf5 {[%clk 0:02:59]} 33. Qe4 {[%clk 0:00:18]}  Rf8 {[%clk 0:02:31]} 34. Bd3 {[%clk 0:00:16]}  Qh6 {[%clk 0:02:40]} 35. Qe7 {[%clk 0:00:17]}  Rg8 {[%clk 0:02:44]} 36. Qf7 {[%clk 0:00:15]}  Qg5 {[%clk 0:02:41]} 37. Qf5 {[%clk 0:00:14]}  Qxf5+ {[%clk 0:02:47]} 38. Bxf5 {[%clk 0:00:24]}  Rf8 {[%clk 0:02:55]} 39. Bg6 {[%clk 0:00:27]}  b5 {[%clk 0:02:58]} 40. axb5 {[%clk 0:00:25]}  cxb5 {[%clk 0:03:08]} 41. Re5 {[%clk 0:00:27]}  Rf6 {[%clk 0:03:04]} 42. Re8+ {[%clk 0:00:32]} 1-0


[Site "http://www.chessbomb.com"]

[Event "Meltwater Champions Chess Tour 2022: Chessable Masters | Prelims"]
[White "Shankland, Sam"]
[Black "Hansen, Eric"]
[WhiteFideId "2004887"]
[BlackFideId "2606771"]
[WhiteElo "2616"]
[BlackElo "2579"]
[Result "1-0"]
[Round "04"]
[TimeControl "900+10"]
[Date "2022.05.19"]
[WhiteClock "0:08:19"]
[BlackClock "0:00:23"]

1. c4 {[%clk 0:15:20]}  Nf6 {[%clk 0:15:20]} 2. Nc3 {[%clk 0:15:26]}  d5 {[%clk 0:15:29]} 3. cxd5 {[%clk 0:15:32]}  Nxd5 {[%clk 0:15:39]} 4. g3 {[%clk 0:15:23]}  Nxc3 {[%clk 0:14:57]} 5. bxc3 {[%clk 0:15:30]}  e5 {[%clk 0:15:07]} 6. Bg2 {[%clk 0:15:34]}  Bd6 {[%clk 0:15:14]} 7. Nf3 {[%clk 0:15:20]}  Nc6 {[%clk 0:15:20]} 8. O-O {[%clk 0:15:23]}  O-O {[%clk 0:15:23]} 9. d3 {[%clk 0:14:20]}  Bd7 {[%clk 0:15:12]} 10. a4 {[%clk 0:14:17]}  Re8 {[%clk 0:14:15]} 11. Nd2 {[%clk 0:14:16]}  Na5 {[%clk 0:14:21]} 12. Nb3 {[%clk 0:13:39]}  Nxb3 {[%clk 0:14:29]} 13. Qxb3 {[%clk 0:13:48]}  Rb8 {[%clk 0:14:39]} 14. a5 {[%clk 0:13:38]}  b6 {[%clk 0:14:34]} 15. axb6 {[%clk 0:13:40]}  axb6 {[%clk 0:14:41]} 16. Ra7 {[%clk 0:13:16]}  Be6 {[%clk 0:14:30]} 17. Qb5 {[%clk 0:12:29]}  Bd7 {[%clk 0:14:38]} 18. Qa6 {[%clk 0:12:03]}  h5 {[%clk 0:14:09]} 19. h4 {[%clk 0:12:00]}  Bg4 {[%clk 0:13:49]} 20. Re1 {[%clk 0:11:48]}  Qf6 {[%clk 0:13:43]} 21. Bg5 {[%clk 0:11:35]}  Qg6 {[%clk 0:12:41]} 22. Qb5 {[%clk 0:11:09]}  f6 {[%clk 0:08:05]} 23. Bc1 {[%clk 0:10:35]}  Bf5 {[%clk 0:08:10]} 24. Ba3 {[%clk 0:10:33]}  Bxa3 {[%clk 0:06:55]} 25. Qb3+ {[%clk 0:10:17]}  Qf7 {[%clk 0:06:39]} 26. Qxf7+ {[%clk 0:09:09]}  Kxf7 {[%clk 0:06:46]} 27. Rxa3 {[%clk 0:09:19]}  e4 {[%clk 0:06:18]} 28. dxe4 {[%clk 0:09:23]}  Bxe4 {[%clk 0:06:24]} 29. Ra7 {[%clk 0:09:31]}  Bxg2 {[%clk 0:05:16]} 30. Rxc7+ {[%clk 0:09:39]}  Re7 {[%clk 0:05:10]} 31. Rxe7+ {[%clk 0:09:46]}  Kxe7 {[%clk 0:05:20]} 32. Kxg2 {[%clk 0:09:55]}  Rc8 {[%clk 0:05:30]} 33. Rb1 {[%clk 0:09:32]}  Rxc3 {[%clk 0:05:38]} 34. Rxb6 {[%clk 0:09:42]}  Kf7 {[%clk 0:05:34]} 35. Rd6 {[%clk 0:08:06]}  Rb3 {[%clk 0:05:38]} 36. Rd3 {[%clk 0:08:00]}  Rb4 {[%clk 0:05:42]} 37. Kf3 {[%clk 0:08:02]}  Ke6 {[%clk 0:05:37]} 38. Ra3 {[%clk 0:07:54]}  Rb5 {[%clk 0:02:13]} 39. Ra7 {[%clk 0:07:50]}  g6 {[%clk 0:01:05]} 40. Rg7 {[%clk 0:07:53]}  g5 {[%clk 0:00:58]} 41. hxg5 {[%clk 0:07:42]}  fxg5 {[%clk 0:01:06]} 42. Rh7 {[%clk 0:07:44]}  g4+ {[%clk 0:01:06]} 43. Kg2 {[%clk 0:07:53]}  Kf6 {[%clk 0:00:57]} 44. f4 {[%clk 0:07:55]}  gxf3+ {[%clk 0:01:03]} 45. exf3 {[%clk 0:08:04]}  Rb2+ {[%clk 0:01:07]} 46. Kh3 {[%clk 0:08:13]}  Kg6 {[%clk 0:00:58]} 47. Ra7 {[%clk 0:08:22]}  Rb1 {[%clk 0:00:55]} 48. Ra6+ {[%clk 0:08:14]}  Kf5 {[%clk 0:00:49]} 49. f4 {[%clk 0:08:04]}  Rh1+ {[%clk 0:00:13]} 50. Kg2 {[%clk 0:08:11]}  Rb1 {[%clk 0:00:15]} 51. Rh6 {[%clk 0:08:17]}  Rb2+ {[%clk 0:00:11]} 52. Kh3 {[%clk 0:08:25]}  Ke4 {[%clk 0:00:16]} 53. Rxh5 {[%clk 0:08:20]}  Kf3 {[%clk 0:00:23]} 54. Ra5 {[%clk 0:08:19]} 1-0


[Site "http://www.chessbomb.com"]

[Event "Meltwater Champions Chess Tour 2022: Chessable Masters | Prelims"]
[White "Vidit, Santosh Gujrathi"]
[Black "Ding, Liren"]
[WhiteFideId "5029465"]
[BlackFideId "8603677"]
[WhiteElo "2617"]
[BlackElo "2836"]
[Result "1/2-1/2"]
[Round "04"]
[TimeControl "900+10"]
[Date "2022.05.19"]
[WhiteClock "0:01:56"]
[BlackClock "0:03:18"]

1. d4 {[%clk 0:15:20]}  Nf6 {[%clk 0:15:20]} 2. c4 {[%clk 0:15:28]}  e6 {[%clk 0:15:29]} 3. Nc3 {[%clk 0:15:36]}  Bb4 {[%clk 0:15:38]} 4. Qc2 {[%clk 0:15:43]}  O-O {[%clk 0:15:38]} 5. e4 {[%clk 0:14:27]}  d5 {[%clk 0:15:45]} 6. e5 {[%clk 0:14:35]}  Ne4 {[%clk 0:15:54]} 7. Bd3 {[%clk 0:14:42]}  c5 {[%clk 0:16:04]} 8. Ne2 {[%clk 0:14:31]}  cxd4 {[%clk 0:16:11]} 9. Nxd4 {[%clk 0:14:39]}  Nd7 {[%clk 0:16:21]} 10. Bf4 {[%clk 0:14:46]}  Qh4 {[%clk 0:16:30]} 11. g3 {[%clk 0:14:51]}  Qh5 {[%clk 0:16:39]} 12. O-O {[%clk 0:14:44]}  Bxc3 {[%clk 0:16:18]} 13. bxc3 {[%clk 0:14:51]}  g5 {[%clk 0:16:28]} 14. cxd5 {[%clk 0:14:41]}  exd5 {[%clk 0:16:22]} 15. Be3 {[%clk 0:14:26]}  Nxe5 {[%clk 0:16:27]} 16. f3 {[%clk 0:14:34]}  Nc5 {[%clk 0:15:48]} 17. Bf5 {[%clk 0:14:26]}  Ne6 {[%clk 0:15:46]} 18. Rae1 {[%clk 0:13:26]}  Nxd4 {[%clk 0:15:11]} 19. Bxd4 {[%clk 0:13:34]}  Nc6 {[%clk 0:15:10]} 20. Bf6 {[%clk 0:13:16]}  Qh6 {[%clk 0:12:38]} 21. Bxc8 {[%clk 0:13:22]}  Raxc8 {[%clk 0:09:20]} 22. Qf5 {[%clk 0:13:28]}  Qg6 {[%clk 0:09:29]} 23. Qxg5 {[%clk 0:12:16]}  Qxg5 {[%clk 0:09:36]} 24. Bxg5 {[%clk 0:12:25]}  f6 {[%clk 0:09:42]} 25. Bf4 {[%clk 0:11:45]}  Rfd8 {[%clk 0:08:00]} 26. Rf2 {[%clk 0:10:28]}  Kf7 {[%clk 0:08:02]} 27. Rd2 {[%clk 0:08:05]}  d4 {[%clk 0:07:14]} 28. cxd4 {[%clk 0:08:12]}  Rxd4 {[%clk 0:07:23]} 29. Rb1 {[%clk 0:07:07]}  b6 {[%clk 0:06:32]} 30. Rc2 {[%clk 0:07:14]}  Rdd8 {[%clk 0:03:53]} 31. Rbc1 {[%clk 0:07:20]}  Ne7 {[%clk 0:04:03]} 32. Rc7 {[%clk 0:06:54]}  a6 {[%clk 0:03:51]} 33. Kf2 {[%clk 0:05:54]}  h5 {[%clk 0:03:36]} 34. Rb7 {[%clk 0:04:44]}  Ke8 {[%clk 0:02:41]} 35. Re1 {[%clk 0:02:13]}  Rc2+ {[%clk 0:02:48]} 36. Kg1 {[%clk 0:02:08]}  Rd7 {[%clk 0:02:56]} 37. Rxb6 {[%clk 0:02:16]}  Kf7 {[%clk 0:02:58]} 38. Rxa6 {[%clk 0:02:21]}  Rb7 {[%clk 0:02:53]} 39. Be3 {[%clk 0:01:36]}  Nf5 {[%clk 0:02:38]} 40. Ra7 {[%clk 0:00:40]}  Rxa7 {[%clk 0:02:47]} 41. Bxa7 {[%clk 0:00:51]}  Rxa2 {[%clk 0:02:56]} 42. Bf2 {[%clk 0:00:46]}  Nd6 {[%clk 0:02:25]} 43. Rc1 {[%clk 0:00:43]}  Kg6 {[%clk 0:02:08]} 44. Rc6 {[%clk 0:00:40]}  Nf5 {[%clk 0:02:16]} 45. h3 {[%clk 0:00:24]}  Ra1+ {[%clk 0:01:41]} 46. Kg2 {[%clk 0:00:33]}  Ra2 {[%clk 0:01:51]} 47. Re6 {[%clk 0:00:23]}  Nd4 {[%clk 0:01:50]} 48. Re4 {[%clk 0:00:31]}  Nf5 {[%clk 0:01:48]} 49. g4 {[%clk 0:00:30]}  hxg4 {[%clk 0:01:41]} 50. hxg4 {[%clk 0:00:33]}  Ng7 {[%clk 0:01:13]} 51. Rc4 {[%clk 0:00:25]}  Ne6 {[%clk 0:01:20]} 52. Kg3 {[%clk 0:00:29]}  Ra3 {[%clk 0:01:27]} 53. Kg2 {[%clk 0:00:28]}  Ra2 {[%clk 0:01:34]} 54. Re4 {[%clk 0:00:17]}  Ng5 {[%clk 0:01:41]} 55. Re3 {[%clk 0:00:26]}  f5 {[%clk 0:01:45]} 56. gxf5+ {[%clk 0:00:31]}  Kxf5 {[%clk 0:01:54]} 57. Rb3 {[%clk 0:00:38]}  Nh3 {[%clk 0:01:55]} 58. Kxh3 {[%clk 0:00:41]}  Rxf2 {[%clk 0:02:04]} 59. Kg3 {[%clk 0:00:50]}  Ra2 {[%clk 0:02:13]} 60. Rb5+ {[%clk 0:00:59]}  Kf6 {[%clk 0:02:22]} 61. f4 {[%clk 0:01:09]}  Ra1 {[%clk 0:02:30]} 62. Kg4 {[%clk 0:01:18]}  Rg1+ {[%clk 0:02:39]} 63. Kf3 {[%clk 0:01:27]}  Rf1+ {[%clk 0:02:49]} 64. Kg4 {[%clk 0:01:37]}  Rg1+ {[%clk 0:02:58]} 65. Kf3 {[%clk 0:01:47]}  Rf1+ {[%clk 0:03:08]} 66. Kg4 {[%clk 0:01:56]}  Rg1+ {[%clk 0:03:18]} 1/2-1/2


[Site "http://www.chessbomb.com"]

[Event "Meltwater Champions Chess Tour 2022: Chessable Masters | Prelims"]
[White "Wei, Yi"]
[Black "Anton Guijarro, David"]
[WhiteFideId "8603405"]
[BlackFideId "2285525"]
[WhiteElo "2752"]
[BlackElo "2633"]
[Result "1-0"]
[Round "04"]
[TimeControl "900+10"]
[Date "2022.05.19"]
[WhiteClock "0:00:33"]
[BlackClock "0:00:11"]

1. d4 {[%clk 0:15:20]}  d5 {[%clk 0:15:20]} 2. c4 {[%clk 0:15:17]}  e6 {[%clk 0:15:27]} 3. Nf3 {[%clk 0:15:11]}  dxc4 {[%clk 0:15:26]} 4. Qa4+ {[%clk 0:14:18]}  Nd7 {[%clk 0:15:08]} 5. e4 {[%clk 0:13:59]}  a6 {[%clk 0:14:37]} 6. Bxc4 {[%clk 0:13:45]}  Rb8 {[%clk 0:14:17]} 7. Qc2 {[%clk 0:12:22]}  b5 {[%clk 0:14:12]} 8. Bd3 {[%clk 0:12:24]}  c5 {[%clk 0:13:40]} 9. Bf4 {[%clk 0:12:12]}  Rb6 {[%clk 0:13:11]} 10. O-O {[%clk 0:11:49]}  Ngf6 {[%clk 0:12:28]} 11. a4 {[%clk 0:11:09]}  c4 {[%clk 0:12:10]} 12. Be2 {[%clk 0:10:59]}  Bb7 {[%clk 0:07:44]} 13. Nc3 {[%clk 0:07:29]}  Bb4 {[%clk 0:05:25]} 14. a5 {[%clk 0:05:57]}  Rc6 {[%clk 0:05:27]} 15. d5 {[%clk 0:05:44]}  exd5 {[%clk 0:05:11]} 16. e5 {[%clk 0:03:08]}  Bxc3 {[%clk 0:04:35]} 17. bxc3 {[%clk 0:03:17]}  Ne4 {[%clk 0:04:27]} 18. Nd4 {[%clk 0:03:26]}  Rg6 {[%clk 0:04:24]} 19. f3 {[%clk 0:01:06]}  Nec5 {[%clk 0:04:23]} 20. Bg3 {[%clk 0:00:38]}  O-O {[%clk 0:03:17]} 21. f4 {[%clk 0:00:41]}  Ne4 {[%clk 0:03:16]} 22. Bf3 {[%clk 0:00:50]}  f5 {[%clk 0:02:54]} 23. exf6 {[%clk 0:00:46]}  Qxf6 {[%clk 0:02:44]} 24. f5 {[%clk 0:00:51]}  Rxg3 {[%clk 0:02:25]} 25. hxg3 {[%clk 0:00:57]}  Ndc5 {[%clk 0:01:59]} 26. Ne6 {[%clk 0:00:28]}  Re8 {[%clk 0:01:04]} 27. Nxc5 {[%clk 0:00:31]}  Nxc5 {[%clk 0:01:13]} 28. Rae1 {[%clk 0:00:31]}  Rd8 {[%clk 0:01:01]} 29. Qd2 {[%clk 0:00:29]}  Ne4 {[%clk 0:01:00]} 30. Qe3 {[%clk 0:00:12]}  h6 {[%clk 0:00:33]} 31. Qa7 {[%clk 0:00:13]}  Qc6 {[%clk 0:00:18]} 32. Bxe4 {[%clk 0:00:10]}  dxe4 {[%clk 0:00:27]} 33. Rf4 {[%clk 0:00:13]}  Qd7 {[%clk 0:00:22]} 34. f6 {[%clk 0:00:18]}  Bd5 {[%clk 0:00:25]} 35. Qxa6 {[%clk 0:00:19]}  Re8 {[%clk 0:00:12]} 36. Rd1 {[%clk 0:00:25]}  Qc6 {[%clk 0:00:11]} 37. f7+ {[%clk 0:00:33]} 1-0


[Site "http://www.chessbomb.com"]

[Event "Meltwater Champions Chess Tour 2022: Chessable Masters | Prelims"]
[White "Giri, Anish"]
[Black "Jones, Gawain C B"]
[WhiteFideId "24116068"]
[BlackFideId "409561"]
[WhiteElo "2730"]
[BlackElo "2630"]
[Result "1-0"]
[Round "04"]
[TimeControl "900+10"]
[Date "2022.05.19"]
[WhiteClock "0:00:38"]
[BlackClock "0:00:26"]

1. Nf3 {[%clk 0:15:20]}  Nf6 {[%clk 0:15:20]} 2. c4 {[%clk 0:15:29]}  g6 {[%clk 0:15:28]} 3. Nc3 {[%clk 0:15:38]}  Bg7 {[%clk 0:15:35]} 4. e4 {[%clk 0:15:48]}  e5 {[%clk 0:15:12]} 5. Nxe5 {[%clk 0:15:54]}  O-O {[%clk 0:15:19]} 6. Nf3 {[%clk 0:15:12]}  Re8 {[%clk 0:15:06]} 7. Bd3 {[%clk 0:15:21]}  Nxe4 {[%clk 0:15:06]} 8. Bxe4 {[%clk 0:15:30]}  Bxc3 {[%clk 0:15:14]} 9. dxc3 {[%clk 0:15:40]}  Rxe4+ {[%clk 0:15:23]} 10. Be3 {[%clk 0:15:49]}  Nc6 {[%clk 0:15:31]} 11. O-O {[%clk 0:15:44]}  d6 {[%clk 0:15:33]} 12. Qd5 {[%clk 0:14:52]}  Qe8 {[%clk 0:15:13]} 13. h3 {[%clk 0:14:17]}  Bf5 {[%clk 0:15:03]} 14. Rfe1 {[%clk 0:13:46]}  Re6 {[%clk 0:13:30]} 15. Ng5 {[%clk 0:13:07]}  Re7 {[%clk 0:13:19]} 16. b3 {[%clk 0:11:55]}  a6 {[%clk 0:11:37]} 17. g4 {[%clk 0:09:15]}  Bd7 {[%clk 0:10:38]} 18. Bd2 {[%clk 0:08:59]}  Ne5 {[%clk 0:09:46]} 19. f4 {[%clk 0:08:47]}  Bc6 {[%clk 0:09:47]} 20. Qd4 {[%clk 0:08:55]}  h6 {[%clk 0:08:16]} 21. fxe5 {[%clk 0:08:56]}  dxe5 {[%clk 0:08:25]} 22. Qf2 {[%clk 0:08:20]}  e4 {[%clk 0:07:57]} 23. Rad1 {[%clk 0:04:55]}  hxg5 {[%clk 0:06:30]} 24. Bxg5 {[%clk 0:05:02]}  e3 {[%clk 0:06:33]} 25. Rxe3 {[%clk 0:04:29]}  Rxe3 {[%clk 0:06:40]} 26. Qxe3 {[%clk 0:04:28]}  f6 {[%clk 0:06:24]} 27. Qxe8+ {[%clk 0:03:00]}  Rxe8 {[%clk 0:06:31]} 28. Bxf6 {[%clk 0:03:01]}  Re2 {[%clk 0:06:39]} 29. Rd8+ {[%clk 0:01:44]}  Kf7 {[%clk 0:06:46]} 30. Bd4 {[%clk 0:01:49]}  Re8 {[%clk 0:05:35]} 31. Rxe8 {[%clk 0:01:52]}  Kxe8 {[%clk 0:05:44]} 32. Be5 {[%clk 0:01:55]}  Kd7 {[%clk 0:05:15]} 33. Kf2 {[%clk 0:01:41]}  Be4 {[%clk 0:05:19]} 34. a3 {[%clk 0:01:20]}  c5 {[%clk 0:04:30]} 35. Ke3 {[%clk 0:01:20]}  Bc2 {[%clk 0:04:33]} 36. b4 {[%clk 0:01:27]}  Bb3 {[%clk 0:04:18]} 37. Kd3 {[%clk 0:01:25]}  Kc6 {[%clk 0:04:21]} 38. Bf6 {[%clk 0:00:59]}  Ba2 {[%clk 0:04:01]} 39. Be7 {[%clk 0:00:53]}  Bb1+ {[%clk 0:03:47]} 40. Ke3 {[%clk 0:01:00]}  Ba2 {[%clk 0:03:33]} 41. Bxc5 {[%clk 0:01:09]}  Bxc4 {[%clk 0:03:42]} 42. h4 {[%clk 0:01:12]}  Kd7 {[%clk 0:03:41]} 43. h5 {[%clk 0:01:02]}  gxh5 {[%clk 0:03:21]} 44. gxh5 {[%clk 0:01:12]}  Bf7 {[%clk 0:00:50]} 45. h6 {[%clk 0:01:19]}  Bg6 {[%clk 0:00:59]} 46. a4 {[%clk 0:00:46]}  Ke6 {[%clk 0:00:43]} 47. Kd4 {[%clk 0:00:48]}  Bc2 {[%clk 0:00:36]} 48. a5 {[%clk 0:00:54]}  Bh7 {[%clk 0:00:33]} 49. c4 {[%clk 0:01:00]}  Bb1 {[%clk 0:00:41]} 50. Bf8 {[%clk 0:00:52]}  Bh7 {[%clk 0:00:32]} 51. Kc5 {[%clk 0:00:54]}  Kd7 {[%clk 0:00:25]} 52. Kb6 {[%clk 0:00:33]}  Kc8 {[%clk 0:00:34]} 53. Bd6 {[%clk 0:00:42]}  Bd3 {[%clk 0:00:38]} 54. Bg3 {[%clk 0:00:45]}  Be4 {[%clk 0:00:30]} 55. b5 {[%clk 0:00:35]}  axb5 {[%clk 0:00:23]} 56. cxb5 {[%clk 0:00:45]}  Kd7 {[%clk 0:00:21]} 57. a6 {[%clk 0:00:25]}  bxa6 {[%clk 0:00:29]} 58. Kxa6 {[%clk 0:00:24]}  Ke6 {[%clk 0:00:21]} 59. b6 {[%clk 0:00:32]}  Kf7 {[%clk 0:00:26]} 60. b7 {[%clk 0:00:38]} 1-0


[Site "http://www.chessbomb.com"]

[Event "Meltwater Champions Chess Tour 2022: Chessable Masters | Prelims"]
[White "Tari, Aryan"]
[Black "Harikrishna, Pentala"]
[WhiteFideId "1510045"]
[BlackFideId "5007003"]
[WhiteElo "2531"]
[BlackElo "2624"]
[Result "0-1"]
[Round "04"]
[TimeControl "900+10"]
[Date "2022.05.19"]
[WhiteClock "0:00:16"]
[BlackClock "0:02:03"]

1. e4 {[%clk 0:15:20]}  e5 {[%clk 0:15:20]} 2. Nf3 {[%clk 0:15:28]}  Nc6 {[%clk 0:15:28]} 3. d4 {[%clk 0:15:37]}  exd4 {[%clk 0:15:36]} 4. Nxd4 {[%clk 0:15:47]}  Nf6 {[%clk 0:15:44]} 5. Nxc6 {[%clk 0:15:56]}  bxc6 {[%clk 0:15:52]} 6. e5 {[%clk 0:16:05]}  Qe7 {[%clk 0:16:00]} 7. Qe2 {[%clk 0:16:14]}  Nd5 {[%clk 0:16:08]} 8. h4 {[%clk 0:16:23]}  Qe6 {[%clk 0:16:16]} 9. Nd2 {[%clk 0:16:20]}  d6 {[%clk 0:16:00]} 10. exd6 {[%clk 0:16:22]}  cxd6 {[%clk 0:15:58]} 11. Nf3 {[%clk 0:15:41]}  Be7 {[%clk 0:15:57]} 12. Nd4 {[%clk 0:15:03]}  Qxe2+ {[%clk 0:13:46]} 13. Bxe2 {[%clk 0:15:13]}  Bd7 {[%clk 0:13:52]} 14. Bg5 {[%clk 0:14:19]}  h6 {[%clk 0:13:55]} 15. Bxe7 {[%clk 0:14:20]}  Nxe7 {[%clk 0:14:04]} 16. O-O-O {[%clk 0:14:14]}  O-O-O {[%clk 0:14:11]} 17. Bf3 {[%clk 0:11:31]}  Kc7 {[%clk 0:13:09]} 18. h5 {[%clk 0:11:08]}  Rhe8 {[%clk 0:12:19]} 19. Rd3 {[%clk 0:08:45]}  a5 {[%clk 0:09:32]} 20. Rhd1 {[%clk 0:07:10]}  d5 {[%clk 0:08:44]} 21. Ra3 {[%clk 0:05:50]}  Ra8 {[%clk 0:07:32]} 22. c4 {[%clk 0:05:36]}  dxc4 {[%clk 0:06:50]} 23. Rc3 {[%clk 0:05:37]}  Nf5 {[%clk 0:06:56]} 24. Nxf5 {[%clk 0:05:25]}  Bxf5 {[%clk 0:07:05]} 25. Rxc4 {[%clk 0:05:34]}  Ra6 {[%clk 0:07:07]} 26. b3 {[%clk 0:04:43]}  Re5 {[%clk 0:05:42]} 27. Kb2 {[%clk 0:04:28]}  Be6 {[%clk 0:05:38]} 28. Ra4 {[%clk 0:04:07]}  Rb6 {[%clk 0:04:26]} 29. Rc1 {[%clk 0:04:16]}  Kd6 {[%clk 0:03:50]} 30. Rc2 {[%clk 0:03:55]}  Kc7 {[%clk 0:03:46]} 31. Ka3 {[%clk 0:03:58]}  Reb5 {[%clk 0:03:28]} 32. Rc3 {[%clk 0:03:03]}  Re5 {[%clk 0:03:37]} 33. Rd4 {[%clk 0:02:52]}  c5 {[%clk 0:03:07]} 34. Ra4 {[%clk 0:01:36]}  c4 {[%clk 0:02:59]} 35. Bg4 {[%clk 0:00:52]}  f5 {[%clk 0:02:43]} 36. f4 {[%clk 0:00:48]}  Rc5 {[%clk 0:02:15]} 37. Be2 {[%clk 0:00:55]}  Kd6 {[%clk 0:01:38]} 38. Bxc4 {[%clk 0:00:53]}  Bd7 {[%clk 0:01:47]} 39. b4 {[%clk 0:01:02]}  axb4+ {[%clk 0:01:43]} 40. Rxb4 {[%clk 0:01:11]}  Ra5+ {[%clk 0:01:52]} 41. Kb3 {[%clk 0:01:19]}  Ba4+ {[%clk 0:02:01]} 42. Ka3 {[%clk 0:00:16]}  Bd1+ {[%clk 0:02:03]} 0-1


[Site "http://www.chessbomb.com"]